fUST/lending_fUST_20241111
["ID","MTS","AMOUNT","RATE_DAILY","PERIOD"]
[341971041,1731336647034,-500.0,0.00024657,2]
[341971043,1731336647046,-500.0,0.00024657,2]
[341971045,1731336647056,-500.0,0.00024657,2]
[341971047,1731336647065,-1931.39,0.00024657,2]
[341971049,1731336647076,-500.0,0.00024657,2]
[341971051,1731336647086,-585.19657441,0.00024657,2]
[341971053,1731336647096,-500.0,0.00024657,2]
[341971055,1731336647106,-500.0,0.00024657,2]
[341971057,1731336647115,-500.00840385,0.00024657,2]
[341971059,1731336647125,-500.0,0.00024657,2]
[341971061,1731336647134,-500.0,0.00024657,2]
[341971063,1731336647144,-500.0,0.00024657,2]
[341971065,1731336647156,-151.0,0.00024657,7]
[341971067,1731336647167,-151.0,0.00024657,7]
[341971069,1731336647176,-500.0,0.00024657,2]
[341971071,1731336647186,-1342.71,0.00024657,2]
[341971073,1731336647196,-503.17028996,0.00024657,2]
[341971075,1731336647206,-418.34160926,0.00024657,2]
[341971077,1731336647215,-500.0,0.00024657,2]
[341971079,1731336647224,-521.66,0.00024657,2]
[341971081,1731336647233,-503.57951531,0.00024657,2]
[341971083,1731336647245,-817.95,0.00024657,2]
[341971085,1731336647255,-500.0,0.00024657,2]
[341971087,1731336647264,-500.0,0.00024657,2]
[341971089,1731336647274,-500.0,0.00024657,2]
[341971091,1731336647283,-500.0,0.00024657,2]
[341971093,1731336647293,-500.0,0.00024657,2]
[341971095,1731336647302,-500.0,0.00024657,2]
[341971097,1731336647312,-500.0,0.00024657,2]
[341971098,1731336647322,-500.0,0.00024657,2]
[341971099,1731336647332,-4417.34,0.00024657,2]
[341971101,1731336647341,-1336.84,0.00024657,2]
[341971103,1731336647351,-507.01009758,0.00024657,2]
[341971105,1731336647361,-151.0,0.00024657,7]
[341971107,1731336647371,-151.0,0.00024657,7]
[341971109,1731336647381,-500.0,0.00024657,2]
[341971111,1731336647390,-151.0,0.00024657,7]
[341971113,1731336647402,-151.0,0.00024657,7]
[341971115,1731336647411,-500.0,0.00024657,2]
[341971117,1731336647423,-500.0,0.00024657,2]
[341971119,1731336647432,-500.0,0.00024657,2]
[341971121,1731336647442,-548.43,0.00024657,2]
[341971123,1731336647452,-251.859658,0.00024657,7]
[341971125,1731336647461,-500.0,0.00024657,2]
[341971127,1731336647471,-500.0,0.00024657,2]
[341971129,1731336647481,-500.0,0.00024657,2]
[341971131,1731336647490,-500.0,0.00024657,2]
[341971133,1731336647500,-500.0,0.00024657,2]
[341971135,1731336647509,-500.0,0.00024657,2]
[341971137,1731336647519,-16065.43,0.00024657,2]
[341971139,1731336647529,-151.0,0.00024657,7]
[341971141,1731336647538,-151.0,0.00024657,7]
[341971143,1731336647548,-151.0,0.00024657,7]
[341971145,1731336647557,-151.0,0.00024657,7]
[341971147,1731336647567,-151.0,0.00024657,7]
[341971149,1731336647576,-151.0,0.00024657,7]
[341971151,1731336647586,-276.948321,0.00024657,7]
[341971153,1731336647595,-732.03,0.00024657,2]
[341971155,1731336647604,-500.0,0.00024657,2]
[341971157,1731336647614,-500.0,0.00024657,2]
[341971159,1731336647623,-151.0,0.00024657,7]
[341971161,1731336647633,-151.0,0.00024657,7]
[341971163,1731336647642,-151.0,0.00024657,7]
[341971165,1731336647654,-500.0,0.00024657,2]
[341971167,1731336647664,-500.0,0.00024657,2]
[341971168,1731336647677,-500.0,0.00024657,2]
[341971169,1731336647686,-847.81410744,0.00024657,2]
[341971171,1731336749629,-151.0,0.00024657,7]
[341971172,1731336749656,-151.0,0.00024657,7]
[341971173,1731336749680,-151.0,0.00024657,7]
[341971174,1731336749703,-151.0,0.00024657,7]
[341971175,1731336749732,-151.0,0.00024657,7]
[341971176,1731336749755,-151.0,0.00024657,7]
[341971177,1731336749777,-151.0,0.00024657,7]
[341971178,1731336749949,-151.0,0.00024657,7]
[341971179,1731336749974,-151.0,0.00024657,7]
[341971180,1731336749996,-151.0,0.00024657,7]
[341971181,1731336750021,-183.184068,0.00024657,7]
[341971182,1731336750046,-151.0,0.00024657,7]
[341971183,1731336750069,-278.200212,0.00024657,7]
[341971184,1731336750092,-151.0,0.00024657,7]
[341971185,1731336750116,-151.0,0.00024657,7]
[341971186,1731336750139,-151.0,0.00024657,7]
[341971187,1731336750162,-151.0,0.00024657,7]
[341971190,1731336856238,159.263538,0.00013973,2]
[341971200,1731337511695,1379.0,0.00027,60]
[341971201,1731337544137,-994.82018905,0.00021196,2]
[341971202,1731337575931,500.0,0.00027,60]
[341971203,1731337625252,-960.90821267,0.0002102,2]
[341971204,1731337632101,-208.36262066,0.0002102,2]
[341971205,1731337632123,-169.385966,0.00023097,2]
[341971206,1731337632144,-575.34426714,0.00023141,2]
[341971207,1731337648102,-1613.86426022,0.00023141,2]
[341971208,1731337745124,-1142.533,0.00021266,2]
[341971209,1731337745156,-26.73783333,0.00021266,2]
[341971210,1731337745180,-1064.02481338,0.00023141,2]
[341971213,1731337762113,-954.0496,0.00023141,2]
[341971269,1731337832037,-1169.27083333,0.00021372,2]
[341971271,1731337832047,-45.71705926,0.00023141,2]
[341971273,1731337832056,-228.018136,0.00023229,2]
[341971274,1731337832065,-204.809567,0.00023277,2]
[341971276,1731337832075,-288.36450552,0.00023413,2]
[341971306,1731337838073,-2665.27891568,0.00023413,2]
[341971308,1731337838083,-300.0,0.00023817,2]
[341971310,1731337838095,-300.0,0.00023817,2]
[341971312,1731337838104,-2077.5022615,0.00023818,2]
[341971313,1731337838932,-4996.6399108,0.00023818,2]
[341971314,1731337838941,-500.0,0.00024,2]
[341971315,1731337838950,-333.62812276,0.00024557,2]
[341971316,1731337838959,-2227.39604546,0.00024557,2]
[341971317,1731337838969,-150.0,0.000246,2]
[341971318,1731337838978,-179.250821,0.000246,2]
[341971319,1731337838992,-204.809567,0.00024647,2]
[341971320,1731337839005,-289.46,0.00024647,3]
[341971321,1731337839014,-415.17527274,0.00024647,3]
[341971331,1731337840753,-453.22472726,0.00024647,3]
[341971332,1731337840762,-172.6912217,0.00024656,2]
[341971333,1731337840771,-1232.07246715,0.00024656,2]
[341971345,1731337843927,-1169.27083333,0.00021372,2]
[341971347,1731337843937,-37.89518104,0.00024656,2]
[341971349,1731337843946,-744.34594682,0.00024657,2]
[341971351,1731337843955,-312.26925601,0.00024657,2]
[341971352,1731337843964,-153.28147,0.00024657,7]
[341971353,1731337843974,-151.0,0.00024657,7]
[341971354,1731337843988,-498.1497,0.00024657,2]
[341971355,1731337843997,-500.0,0.00024657,2]
[341971356,1731337844006,-500.0,0.00024657,2]
[341971357,1731337844014,-500.0,0.00024657,2]
[341971358,1731337844023,-500.0,0.00024657,2]
[341971359,1731337844032,-500.0,0.00024657,2]
[341971360,1731337844041,-500.0,0.00024657,2]
[341971361,1731337844049,-500.0,0.00024657,2]
[341971362,1731337844058,-500.0,0.00024657,2]
[341971365,1731337844167,-151.0,0.00024657,7]
[341971366,1731337844177,-254.30058,0.00024657,7]
[341971367,1731337844186,-500.0,0.00024657,2]
[341971368,1731337844196,-204.36226985,0.00024657,2]
[341971385,1731337846136,-1004.541885,0.000246,2]
[341971386,1731337846146,-500.0,0.00024655,2]
[341971387,1731337846157,-1064.622237,0.00024656,2]
[341971388,1731337846170,-295.63773015,0.00024657,2]
[341971389,1731337846179,-500.0,0.00024657,2]
[341971390,1731337846189,-151.0,0.00024657,7]
[341971391,1731337846198,-500.0,0.00024657,2]
[341971392,1731337846208,-242.692008,0.00024657,7]
[341971393,1731337846217,-543.18528652,0.00024657,2]
[341971394,1731337846228,-500.0,0.00024657,2]
[341971395,1731337846240,-500.0,0.00024657,2]
[341971396,1731337846250,-500.0,0.00024657,2]
[341971397,1731337846259,-500.0,0.00024657,2]
[341971398,1731337846269,-500.0,0.00024657,2]
[341971399,1731337846279,-599.2068067,0.00024657,2]
[341971400,1731337846288,-500.0,0.00024657,2]
[341971401,1731337846298,-540.97170847,0.00024657,2]
[341971402,1731337846309,-502.53042961,0.00024657,2]
[341971403,1731337846319,-500.0,0.00024657,2]
[341971404,1731337846328,-500.0,0.00024657,2]
[341971405,1731337846337,-500.0,0.00024657,2]
[341971406,1731337846347,-200.0,0.00024657,2]
[341971407,1731337846357,-543.39,0.00024657,2]
[341971408,1731337846367,-500.0,0.00024657,2]
[341971409,1731337846376,-500.0,0.00024657,2]
[341971410,1731337846385,-500.0,0.00024657,2]
[341971411,1731337846394,-500.0,0.00024657,2]
[341971412,1731337846405,-512.12714534,0.00024657,2]
[341971413,1731337846414,-500.0,0.00024657,2]
[341971414,1731337846423,-500.0,0.00024657,2]
[341971415,1731337846433,-500.0,0.00024657,2]
[341971416,1731337846442,-631.87,0.00024657,2]
[341971417,1731337846452,-500.0,0.00024657,2]
[341971418,1731337846461,-500.0,0.00024657,2]
[341971419,1731337846471,-500.0,0.00024657,2]
[341971420,1731337846480,-167.75988994,0.00024657,2]
[341971421,1731337846493,-500.0,0.00024657,2]
[341971422,1731337846502,-606.172503,0.00024657,2]
[341971423,1731337846511,-500.0,0.00024657,2]
[341971424,1731337846520,-515.69723866,0.00024657,2]
[341971425,1731337846529,-500.0,0.00024657,2]
[341971426,1731337846538,-524.86,0.00024657,2]
[341971427,1731337846547,-500.0,0.00024657,2]
[341971428,1731337846557,-500.0,0.00024657,2]
[341971429,1731337846567,-500.0,0.00024657,2]
[341971430,1731337846576,-500.0,0.00024657,2]
[341971431,1731337846585,-500.0,0.00024657,2]
[341971432,1731337846595,-500.0,0.00024657,2]
[341971433,1731337846604,-500.0,0.00024657,2]
[341971434,1731337846613,-500.0,0.00024657,2]
[341971435,1731337846623,-500.0,0.00024657,2]
[341971436,1731337846633,-500.0,0.00024657,2]
[341971437,1731337846643,-151.0,0.00024657,7]
[341971438,1731337846653,-501.14,0.00024657,2]
[341971439,1731337846663,-151.0,0.00024657,7]
[341971440,1731337846672,-535.39670883,0.00024657,2]
[341971441,1731337846682,-215.15024,0.00024657,7]
[341971442,1731337846693,-500.0,0.00024657,2]
[341971443,1731337846702,-500.0,0.00024657,2]
[341971444,1731337846712,-500.0,0.00024657,2]
[341971445,1731337846723,-2000.81,0.00024657,2]
[341971446,1731337846732,-2336.0,0.00024657,2]
[341971447,1731337846755,-500.0,0.00024657,2]
[341971448,1731337846764,-500.0,0.00024657,2]
[341971449,1731337846774,-500.0,0.00024657,2]
[341971450,1731337846784,-500.0,0.00024657,2]
[341971451,1731337846794,-500.0,0.00024657,2]
[341971452,1731337846804,-500.0,0.00024657,2]
[341971453,1731337846813,-500.0,0.00024657,2]
[341971454,1731337846823,-618.82,0.00024657,2]
[341971455,1731337846832,-500.0,0.00024657,2]
[341971456,1731337846841,-500.0,0.00024657,2]
[341971457,1731337846851,-500.0,0.00024657,2]
[341971458,1731337846861,-500.0,0.00024657,2]
[341971459,1731337846871,-500.0,0.00024657,2]
[341971460,1731337846880,-500.0,0.00024657,2]
[341971461,1731337846891,-500.0,0.00024657,2]
[341971462,1731337846900,-500.0,0.00024657,2]
[341971463,1731337846910,-863.86,0.00024657,2]
[341971464,1731337846920,-507.72158613,0.00024657,2]
[341971465,1731337846930,-500.0,0.00024657,2]
[341971466,1731337846939,-969.67,0.00024657,2]
[341971467,1731337846950,-500.0,0.00024657,2]
[341971468,1731337846960,-500.0,0.00024657,2]
[341971469,1731337846970,-500.0,0.00024657,2]
[341971470,1731337846979,-500.0,0.00024657,2]
[341971471,1731337846992,-500.0,0.00024657,2]
[341971472,1731337847002,-528.2354469,0.00024657,2]
[341971473,1731337847012,-500.0,0.00024657,2]
[341971474,1731337847022,-1850.91,0.00024657,2]
[341971475,1731337847032,-500.0,0.00024657,2]
[341971476,1731337847041,-500.0,0.00024657,2]
[341971477,1731337847051,-174.20759184,0.00024657,2]
[341971478,1731337847061,-500.0,0.00024657,2]
[341971479,1731337847071,-500.0,0.00024657,2]
[341971480,1731337847083,-500.0,0.00024657,2]
[341971481,1731337847095,-500.0,0.00024657,2]
[341971482,1731337847104,-542.39930308,0.00024657,2]
[341971483,1731337847113,-500.0,0.00024657,2]
[341971484,1731337847123,-1286.76,0.00024657,2]
[341971485,1731337847133,-500.0,0.00024657,2]
[341971486,1731337847143,-500.0,0.00024657,2]
[341971487,1731337847153,-500.0,0.00024657,2]
[341971488,1731337847163,-4402.63,0.00024657,2]
[341971489,1731337847174,-500.0,0.00024657,2]
[341971490,1731337847183,-151.0,0.00024657,7]
[341971491,1731337847193,-186.98741,0.00024657,7]
[341971492,1731337847203,-783.87,0.00024657,2]
[341971493,1731337847212,-1281.14,0.00024657,2]
[341971494,1731337847223,-500.0,0.00024657,2]
[341971495,1731337847232,-500.0,0.00024657,2]
[341971496,1731337847245,-550.1,0.00024657,2]
[341971497,1731337847253,-500.0,0.00024657,2]
[341971498,1731337847263,-500.0,0.00024657,2]
[341971499,1731337847273,-500.0,0.00024657,2]
[341971500,1731337847283,-500.0,0.00024657,2]
[341971501,1731337847293,-500.0,0.00024657,2]
[341971502,1731337847302,-500.0,0.00024657,2]
[341971503,1731337847312,-463.41694243,0.00024657,2]
[341971504,1731337847321,-500.0,0.00024657,2]
[341971505,1731337847331,-2150.77,0.00024657,2]
[341971506,1731337847340,-2150.77,0.00024657,2]
[341971507,1731337847350,-2150.77,0.00024657,2]
[341971508,1731337847359,-2150.77,0.00024657,2]
[341971509,1731337847368,-2150.77,0.00024657,2]
[341971510,1731337847378,-2150.77,0.00024657,2]
[341971511,1731337847390,-2150.77,0.00024657,2]
[341971512,1731337847399,-2150.77,0.00024657,2]
[341971513,1731337847408,-2150.77,0.00024657,2]
[341971514,1731337847418,-2150.77,0.00024657,2]
[341971515,1731337847427,-151.0,0.00024657,7]
[341971516,1731337847436,-15948.93,0.00024657,2]
[341971517,1731337847445,-151.0,0.00024657,7]
[341971518,1731337847455,-151.0,0.00024657,7]
[341971519,1731337847464,-151.0,0.00024657,7]
[341971520,1731337847473,-571.64392483,0.00024657,2]
[341971521,1731337847483,-500.0,0.00024657,2]
[341971522,1731337847494,-500.0,0.00024657,2]
[341971523,1731337847503,-500.0,0.00024657,2]
[341971524,1731337847512,-500.0,0.00024657,2]
[341971525,1731337847522,-500.0,0.00024657,2]
[341971526,1731337847531,-701.53,0.00024657,2]
[341971527,1731337847540,-1526.52,0.00024657,2]
[341971528,1731337847549,-1364.86,0.00024657,2]
[341971529,1731337847559,-500.0,0.00024657,2]
[341971530,1731337847568,-500.0,0.00024657,2]
[341971531,1731337847577,-151.0,0.00024657,7]
[341971532,1731337847586,-151.0,0.00024657,7]
[341971533,1731337847596,-500.0,0.00024657,2]
[341971534,1731337847605,-151.0,0.00024657,7]
[341971535,1731337847614,-500.0,0.00024657,2]
[341971536,1731337847623,-151.0,0.00024657,7]
[341971537,1731337847632,-151.0,0.00024657,7]
[341971538,1731337847641,-500.0,0.00024657,2]
[341971539,1731337847650,-500.0,0.00024657,2]
[341971540,1731337847659,-151.0,0.00024657,7]
[341971541,1731337847668,-199.766654,0.00024657,7]
[341971542,1731337847678,-500.0,0.00024657,2]
[341971543,1731337847687,-3372.57,0.00024657,2]
[341971544,1731337847695,-500.0,0.00024657,2]
[341971545,1731337847705,-862.29,0.00024657,2]
[341971546,1731337847714,-500.0,0.00024657,2]
[341971547,1731337847724,-647.65,0.00024657,2]
[341971548,1731337847732,-500.0,0.00024657,2]
[341971549,1731337847745,-500.0,0.00024657,2]
[341971550,1731337847755,-532.38629349,0.00024657,2]
[341971551,1731337847764,-506.88964292,0.00024657,2]
[341971552,1731337847775,-500.0,0.00024657,2]
[341971553,1731337847784,-934.29,0.00024657,2]
[341971554,1731337847794,-500.0,0.00024657,2]
[341971555,1731337847803,-894.26,0.00024657,2]
[341971556,1731337847813,-500.0,0.00024657,2]
[341971557,1731337847822,-517.43670441,0.00024657,2]
[341971558,1731337847841,-500.0,0.00024657,2]
[341971559,1731337847850,-443.7140885,0.00024657,2]
[341971560,1731337847859,-903.41,0.00024657,2]
[341971561,1731337847869,-568.18155947,0.00024657,2]
[341971562,1731337847878,-500.0,0.00024657,2]
[341971563,1731337847887,-500.0,0.00024657,2]
[341971564,1731337847896,-1926.8,0.00024657,2]
[341971565,1731337847906,-460.50727018,0.00024657,2]
[341971566,1731337847915,-500.0,0.00024657,2]
[341971567,1731337847924,-500.0,0.00024657,2]
[341971568,1731337847933,-500.0,0.00024657,2]
[341971569,1731337847942,-500.0,0.00024657,2]
[341971570,1731337847951,-609.03,0.00024657,2]
[341971571,1731337847961,-500.0,0.00024657,2]
[341971572,1731337847971,-521.14,0.00024657,2]
[341971573,1731337847980,-500.0,0.00024657,2]
[341971574,1731337847992,-1316.24,0.00024657,2]
[341971575,1731337848001,-500.0,0.00024657,2]
[341971576,1731337848011,-1770.76,0.00024657,2]
[341971577,1731337848021,-176.32483658,0.00024657,2]
[341971578,1731337848031,-637.38,0.00024657,2]
[341971579,1731337848041,-500.0,0.00024657,2]
[341971580,1731337848051,-500.0,0.00024657,2]
[341971581,1731337848061,-537.68,0.00024657,2]
[341971582,1731337848070,-1639.09,0.00024657,2]
[341971583,1731337848080,-151.0,0.00024657,7]
[341971584,1731337848094,-500.0,0.00024657,2]
[341971585,1731337848104,-151.0,0.00024657,7]
[341971586,1731337848114,-151.0,0.00024657,7]
[341971587,1731337848215,-151.0,0.00024657,7]
[341971588,1731337848226,-500.0,0.00024657,2]
[341971589,1731337848239,-500.0,0.00024657,2]
[341971590,1731337848249,-243.191172,0.00024657,7]
[341971591,1731337848258,-500.0,0.00024657,2]
[341971592,1731337848268,-516.74791874,0.00024657,2]
[341971593,1731337848278,-767.62,0.00024657,2]
[341971594,1731337848287,-753.64,0.00024657,2]
[341971595,1731337848297,-500.0,0.00024657,2]
[341971596,1731337848307,-521.16209133,0.00024657,2]
[341971597,1731337848317,-500.0,0.00024657,2]
[341971598,1731337848326,-500.0,0.00024657,2]
[341971599,1731337848337,-3395.95,0.00024657,2]
[341971600,1731337848347,-500.0,0.00024657,2]
[341971601,1731337848357,-500.0,0.00024657,2]
[341971602,1731337848367,-151.0,0.00024657,7]
[341971603,1731337848377,-151.0,0.00024657,7]
[341971604,1731337848386,-151.0,0.00024657,7]
[341971605,1731337848396,-500.0,0.00024657,2]
[341971606,1731337848405,-283.639078,0.00024657,7]
[341971607,1731337848415,-151.0,0.00024657,7]
[341971608,1731337848425,-151.0,0.00024657,7]
[341971609,1731337848435,-151.0,0.00024657,7]
[341971610,1731337848444,-151.0,0.00024657,7]
[341971611,1731337848453,-151.0,0.00024657,7]
[341971612,1731337848462,-151.0,0.00024657,7]
[341971613,1731337848471,-151.0,0.00024657,7]
[341971614,1731337848481,-500.0,0.00024657,2]
[341971615,1731337848493,-151.0,0.00024657,7]
[341971616,1731337848502,-151.0,0.00024657,7]
[341971617,1731337848511,-190.16997,0.00024657,7]
[341971618,1731337848520,-5876.07,0.00024657,2]
[341971619,1731337848529,-500.0,0.00024657,2]
[341971620,1731337848538,-500.0,0.00024657,2]
[341971621,1731337848548,-1259.38,0.00024657,2]
[341971622,1731337848557,-514.51397834,0.00024657,2]
[341971623,1731337848567,-1717.84,0.00024657,2]
[341971624,1731337848577,-500.0,0.00024657,2]
[341971625,1731337848586,-513.86093231,0.00024657,2]
[341971626,1731337848596,-889.17,0.00024657,2]
[341971627,1731337848606,-500.0,0.00024657,2]
[341971628,1731337848615,-500.0,0.00024657,2]
[341971629,1731337848625,-1136.66,0.00024657,2]
[341971630,1731337848634,-201.97808744,0.00024657,2]
[341971631,1731337848643,-500.0,0.00024657,2]
[341971632,1731337848653,-864.85,0.00024657,2]
[341971633,1731337848663,-500.0,0.00024657,2]
[341971634,1731337848672,-500.0,0.00024657,2]
[341971635,1731337848681,-500.0,0.00024657,2]
[341971636,1731337848691,-500.0,0.00024658,2]
[341971637,1731337848700,-500.0,0.00024658,2]
[341971638,1731337848709,-500.0,0.00024658,2]
[341971639,1731337848718,-500.0,0.00024658,2]
[341971640,1731337848727,-500.0,0.00024658,2]
[341971641,1731337848737,-307.7242841,0.00024658,2]
[341971642,1731337848747,-1000.0,0.0002467,2]
[341971643,1731337848757,-500.0,0.00024673,2]
[341971644,1731337848766,-500.0,0.00024673,2]
[341971645,1731337848776,-500.07929953,0.00024673,2]
[341971646,1731337848785,-500.0,0.00024673,2]
[341971647,1731337848795,-434.23469591,0.00024673,2]
[341971648,1731337848804,-500.0,0.00024673,2]
[341971649,1731337848814,-502.82096784,0.00024673,2]
[341971650,1731337848824,-500.0,0.00024673,2]
[341971651,1731337848833,-500.0,0.00024673,2]
[341971652,1731337848842,-500.0,0.00024673,2]
[341971653,1731337848852,-500.0,0.00024673,2]
[341971654,1731337848861,-1000.0,0.00024679,2]
[341971655,1731337848871,-1000.0,0.00024712,2]
[341971656,1731337848881,-1000.0,0.00024714,2]
[341971657,1731337848891,-303.15095549,0.00024726,2]
[341971658,1731337848901,-1000.0,0.00024727,2]
[341971659,1731337848912,-2150.77,0.00024748,2]
[341971660,1731337848922,-10272.39803645,0.00024749,2]
[341971661,1731337848931,-151.0,0.00024749,7]
[341971662,1731337848941,-333.62812275,0.00024763,2]
[341971663,1731337848950,-1000.0,0.00024766,2]
[341971664,1731337848960,-1000.0,0.00024772,2]
[341971665,1731337848970,-1061.83995303,0.000248,2]
[341971666,1731337848979,-1061.83995301,0.000248,2]
[341971667,1731337848991,-1061.83995301,0.000248,2]
[341971668,1731337849001,-1061.83995301,0.000248,2]
[341971669,1731337849011,-1000.0,0.00024811,2]
[341971670,1731337849021,-1000.0,0.00024816,2]
[341971671,1731337849032,-222.7409843,0.0002483,2]
[341971672,1731337849042,-1000.0,0.00024892,2]
[341971673,1731337849052,-153.0,0.000249,2]
[341971674,1731337849062,-1000.0,0.00024907,2]
[341971675,1731337849072,-1000.0,0.00024916,2]
[341971676,1731337849085,-2150.77,0.00024929,2]
[341971677,1731337849096,-2150.77,0.0002493,2]
[341971678,1731337849106,-2150.77,0.0002493,2]
[341971679,1731337849115,-2150.77,0.0002493,2]
[341971680,1731337849125,-2150.77,0.0002493,2]
[341971681,1731337849135,-2150.77,0.0002493,2]
[341971682,1731337849144,-2150.77,0.0002493,2]
[341971683,1731337849157,-2150.77,0.0002493,2]
[341971684,1731337849168,-151.0,0.0002493,7]
[341971685,1731337849179,-500.0,0.00024931,2]
[341971686,1731337849188,-500.0,0.00024931,2]
[341971687,1731337849198,-248.33335362,0.00024931,2]
[341971688,1731337849212,-500.0,0.00024931,2]
[341971689,1731337849222,-261.61068272,0.00024931,2]
[341971690,1731337849232,-500.0,0.00024931,2]
[341971691,1731337849244,-599.229453,0.00024931,2]
[341971692,1731337849254,-500.0,0.00024931,2]
[341971693,1731337849263,-500.0,0.00024931,2]
[341971694,1731337849274,-161.67995717,0.00024931,2]
[341971695,1731337849283,-207.6354109,0.00024931,2]
[341971696,1731337849293,-500.0,0.00024931,2]
[341971697,1731337849302,-500.0,0.00024931,2]
[341971698,1731337849311,-500.0,0.00024931,2]
[341971699,1731337849320,-500.0,0.00024931,2]
[341971700,1731337849330,-500.0,0.00024931,2]
[341971701,1731337849340,-500.0,0.00024931,2]
[341971702,1731337849349,-500.0,0.00024931,2]
[341971703,1731337849359,-500.0,0.00024931,2]
[341971704,1731337849369,-500.0,0.00024931,2]
[341971705,1731337849379,-200.0,0.00024931,2]
[341971706,1731337849388,-543.39,0.00024931,2]
[341971707,1731337849398,-500.0,0.00024931,2]
[341971708,1731337849407,-500.0,0.00024931,2]
[341971709,1731337849417,-500.0,0.00024931,2]
[341971710,1731337849426,-500.0,0.00024931,2]
[341971711,1731337849436,-500.0,0.00024931,2]
[341971712,1731337849445,-500.0,0.00024931,2]
[341971713,1731337849455,-631.87,0.00024931,2]
[341971714,1731337849465,-500.0,0.00024931,2]
[341971715,1731337849475,-500.0,0.00024931,2]
[341971716,1731337849485,-500.0,0.00024931,2]
[341971717,1731337849498,-500.0,0.00024931,2]
[341971718,1731337849508,-500.0,0.00024931,2]
[341971719,1731337849518,-500.0,0.00024931,2]
[341971720,1731337849527,-524.86,0.00024931,2]
[341971721,1731337849536,-500.0,0.00024931,2]
[341971722,1731337849546,-446.11147499,0.00024931,2]
[341971723,1731337849556,-500.0,0.00024931,2]
[341971724,1731337849566,-500.0,0.00024931,2]
[341971725,1731337849577,-500.0,0.00024931,2]
[341971726,1731337849586,-500.0,0.00024931,2]
[341971727,1731337849595,-326.10803336,0.00024931,2]
[341971728,1731337849605,-500.0,0.00024931,2]
[341971729,1731337849615,-500.0,0.00024931,2]
[341971730,1731337849625,-501.14,0.00024931,2]
[341971731,1731337849634,-500.0,0.00024931,2]
[341971732,1731337849644,-500.0,0.00024931,2]
[341971733,1731337849654,-500.0,0.00024931,2]
[341971734,1731337849664,-2000.81,0.00024931,2]
[341971735,1731337849673,-759.09711723,0.00024931,2]
[341971736,1731337849683,-500.0,0.00024931,2]
[341971737,1731337849693,-500.0,0.00024931,2]
[341971738,1731337849703,-500.0,0.00024931,2]
[341971739,1731337849713,-500.0,0.00024931,2]
[341971740,1731337849722,-500.0,0.00024931,2]
[341971741,1731337849732,-618.82,0.00024931,2]
[341971742,1731337849744,-500.0,0.00024931,2]
[341971743,1731337849754,-500.0,0.00024931,2]
[341971744,1731337849764,-500.0,0.00024931,2]
[341971745,1731337849774,-500.0,0.00024931,2]
[341971746,1731337849784,-181.0,0.00024931,2]
[341971747,1731337849794,-500.0,0.00024931,2]